fUSD/lending_fUSD_20260226
["ID","MTS","AMOUNT","RATE_DAILY","PERIOD"]
[406723313,1772121050083,-156.66979557,0.00017899,2]
[406723314,1772121050092,-339.21457322,0.00017899,2]
[406723316,1772121050102,-500.0,0.00017899,2]
[406723318,1772121050111,-150.0,0.00017899,2]
[406723320,1772121050120,-150.0,0.000179,2]
[406723322,1772121050129,-150.0,0.000179,2]
[406723324,1772121050139,-285.3136,0.000179,2]
[406723326,1772121050148,-25000.0,0.000179,3]
[406723328,1772121050157,-204.31050693,0.000179,2]
[406723330,1772121050166,-16240.68395677,0.000179,2]
[406723332,1772121050176,-4791.25010129,0.000179,2]
[406723334,1772121050186,-465.42516495,0.000179,2]
[406723336,1772121050195,-21846.65485425,0.000179,2]
[406723338,1772121050204,-4964.0,0.000179,2]
[406723340,1772121050214,-187.29970089,0.000179,2]
[406723342,1772121050224,-156.66979557,0.000179,2]
[406723344,1772121050232,-150.0,0.000179,2]
[406723347,1772121050242,-339.21457322,0.000179,2]
[406723348,1772121050254,-150.0,0.00017901,2]
[406723349,1772121050264,-150.0,0.00017901,2]
[406723350,1772121050274,-150.0,0.00017901,2]
[406723351,1772121050283,-187.29970089,0.00017902,2]
[406723352,1772121050294,-156.66979557,0.00017902,2]
[406723354,1772121050303,-339.21457322,0.00017902,2]
[406723356,1772121050312,-150.0,0.00017902,2]
[406723357,1772121050321,-150.0,0.00017902,2]
[406723358,1772121050330,-150.0,0.00017902,2]
[406723359,1772121050340,-150.0,0.00017902,2]
[406723360,1772121050349,-150.0,0.00017903,2]
[406723361,1772121050358,-187.29970089,0.00017903,2]
[406723362,1772121050367,-156.66979557,0.00017903,2]
[406723363,1772121050377,-339.21457322,0.00017903,2]
[406723365,1772121050387,-150.0,0.00017903,2]
[406723367,1772121050396,-150.0,0.00017904,2]
[406723369,1772121050405,-150.0,0.00017904,2]
[406723371,1772121050415,-150.0,0.00017904,2]
[406723373,1772121050424,-150.0,0.00017904,2]
[406723375,1772121050434,-187.29970089,0.00017905,2]
[406723377,1772121050443,-156.66979557,0.00017905,2]
[406723379,1772121050452,-150.0,0.00017905,2]
[406723381,1772121050461,-339.21457322,0.00017905,2]
[406723383,1772121050470,-150.0,0.00017905,2]
[406723385,1772121050480,-150.0,0.00017905,2]
[406723387,1772121050490,-529.0,0.00017905,2]
[406723389,1772121050499,-150.0,0.00017906,2]
[406723392,1772121050509,-187.29970089,0.00017906,2]
[406723393,1772121050518,-156.66979557,0.00017906,2]
[406723396,1772121050528,-339.21457322,0.00017906,2]
[406723398,1772121050537,-150.0,0.00017906,2]
[406723399,1772121050546,-150.0,0.00017906,2]
[406723402,1772121050556,-527.0,0.00017907,2]
[406723404,1772121050565,-150.0,0.00017907,2]
[406723406,1772121050575,-187.29970089,0.00017907,2]
[406723408,1772121050585,-156.66979557,0.00017907,2]
[406723410,1772121050594,-339.21457322,0.00017907,2]
[406723412,1772121050603,-150.0,0.00017907,2]
[406723414,1772121050612,-150.0,0.00017908,2]
[406723416,1772121050622,-150.0,0.00017908,2]
[406723418,1772121050632,-150.0,0.00017908,2]
[406723420,1772121050641,-187.29970089,0.00017909,2]
[406723421,1772121050650,-150.0,0.00017909,2]
[406723423,1772121050659,-156.66979557,0.00017909,2]
[406723425,1772121050668,-150.0,0.00017909,2]
[406723427,1772121050678,-339.21457322,0.00017909,2]
[406723429,1772121050687,-150.0,0.00017909,2]
[406723432,1772121050697,-150.0,0.0001791,2]
[406723434,1772121050707,-187.29970089,0.0001791,2]
[406723436,1772121050716,-156.66979557,0.0001791,2]
[406723437,1772121050724,-339.21457322,0.0001791,2]
[406723439,1772121050734,-150.0,0.0001791,2]
[406723441,1772121050743,-150.0,0.00017911,2]
[406723443,1772121050752,-150.0,0.00017911,2]
[406723445,1772121050761,-150.0,0.00017911,2]
[406723447,1772121050771,-150.0,0.00017911,2]
[406723449,1772121050780,-150.0,0.00017911,2]
[406723451,1772121050790,-150.0,0.00017911,2]
[406723453,1772121050800,-187.29970089,0.00017911,2]
[406723455,1772121050809,-156.66979557,0.00017911,2]
[406723457,1772121050818,-339.21457322,0.00017911,2]
[406723459,1772121050828,-150.0,0.00017912,2]
[406723461,1772121050837,-150.0,0.00017912,2]
[406723463,1772121050847,-187.29970089,0.00017913,2]
[406723465,1772121050856,-156.66979557,0.00017913,2]
[406723467,1772121050870,-150.0,0.00017913,2]
[406723469,1772121050880,-339.21457322,0.00017913,2]
[406723471,1772121050889,-150.0,0.00017914,2]
[406723473,1772121050899,-150.0,0.00017914,2]
[406723475,1772121050910,-187.29970089,0.00017914,2]
[406723477,1772121050919,-156.66979557,0.00017914,2]
[406723479,1772121050929,-339.21457322,0.00017914,2]
[406723482,1772121050941,-150.0,0.00017914,2]
[406723484,1772121050951,-150.0,0.00017915,2]
[406723486,1772121050961,-150.0,0.00017915,2]
[406723488,1772121050970,-150.0,0.00017915,2]
[406723490,1772121050979,-150.0,0.00017916,2]
[406723491,1772121050989,-187.29970089,0.00017916,2]
[406723493,1772121050999,-156.66979557,0.00017916,2]
[406723496,1772121051008,-339.21457322,0.00017916,2]
[406723498,1772121051017,-150.0,0.00017916,2]
[406723499,1772121051026,-150.0,0.00017917,2]
[406723502,1772121051037,-150.0,0.00017917,2]
[406723504,1772121051047,-187.29970089,0.00017917,2]
[406723506,1772121051056,-156.66979557,0.00017917,2]
[406723508,1772121051066,-150.0,0.00017917,2]
[406723510,1772121051075,-339.21457322,0.00017917,2]
[406723512,1772121051084,-150.0,0.00017917,2]
[406723514,1772121051094,-500.0,0.00017918,2]
[406723516,1772121051104,-150.0,0.00017918,2]
[406723517,1772121051113,-150.0,0.00017918,2]
[406723519,1772121051122,-150.0,0.00017918,2]
[406723522,1772121051132,-187.29970089,0.00017918,2]
[406723524,1772121051141,-156.66979557,0.00017918,2]
[406723525,1772121051151,-339.21457322,0.00017918,2]
[406723527,1772121051160,-150.0,0.00017919,2]
[406723529,1772121051170,-150.0,0.00017919,2]
[406723532,1772121051179,-150.0,0.00017919,2]
[406723534,1772121051188,-150.0,0.0001792,2]
[406723536,1772121051198,-187.29970089,0.0001792,2]
[406723538,1772121051207,-156.66979557,0.0001792,2]
[406723540,1772121051216,-339.21457322,0.0001792,2]
[406723542,1772121051226,-150.0,0.0001792,2]
[406723544,1772121051235,-150.0,0.0001792,2]
[406723546,1772121051244,-187.29970089,0.00017921,2]
[406723548,1772121051253,-156.66979557,0.00017921,2]
[406723550,1772121051263,-150.0,0.00017921,2]
[406723552,1772121051273,-339.21457322,0.00017921,2]
[406723554,1772121051282,-150.0,0.00017921,2]
[406723556,1772121051294,-150.0,0.00017922,2]
[406723558,1772121051303,-150.0,0.00017922,2]
[406723560,1772121051312,-150.0,0.00017922,2]
[406723562,1772121051321,-150.0,0.00017922,2]
[406723564,1772121051331,-187.29970089,0.00017923,2]
[406723566,1772121051340,-156.66979557,0.00017923,2]
[406723568,1772121051349,-339.21457322,0.00017923,2]
[406723570,1772121051359,-150.0,0.00017923,2]
[406723572,1772121051368,-150.0,0.00017923,2]
[406723574,1772121051377,-150.0,0.00017923,2]
[406723576,1772121051386,-150.0,0.00017923,2]
[406723587,1772121051395,-150.0,0.00017924,2]
[406723590,1772121051495,-187.29970089,0.00017924,2]
[406723592,1772121051504,-156.66979557,0.00017924,2]
[406723594,1772121051514,-339.21457322,0.00017924,2]
[406723596,1772121051524,-150.0,0.00017924,2]
[406723598,1772121051533,-150.0,0.00017924,2]
[406723600,1772121051545,-150.0,0.00017925,2]
[406723602,1772121051554,-150.0,0.00017925,2]
[406723604,1772121051563,-187.29970089,0.00017925,2]
[406723606,1772121051572,-156.66979557,0.00017925,2]
[406723608,1772121051581,-150.0,0.00017925,2]
[406723610,1772121051590,-339.21457322,0.00017925,2]
[406723612,1772121051599,-150.0,0.00017926,2]
[406723614,1772121051608,-187.29970089,0.00017927,2]
[406723616,1772121051617,-156.66979557,0.00017927,2]
[406723618,1772121051626,-339.21457322,0.00017927,2]
[406723620,1772121051635,-150.0,0.00017927,2]
[406723622,1772121051644,-150.0,0.00017927,2]
[406723624,1772121051653,-150.0,0.00017927,2]
[406723626,1772121051663,-187.29970089,0.00017928,2]
[406723627,1772121051672,-156.66979557,0.00017928,2]
[406723628,1772121051680,-339.21457322,0.00017928,2]
[406723629,1772121051690,-150.0,0.00017928,2]
[406723630,1772121051700,-150.0,0.00017928,2]
[406723631,1772121051709,-150.0,0.00017928,2]
[406723632,1772121051718,-150.0,0.00017929,2]
[406723633,1772121051727,-150.0,0.00017929,2]
[406723634,1772121051738,-150.0,0.00017929,2]
[406723635,1772121051748,-187.29970089,0.00017929,2]
[406723636,1772121051757,-156.66979557,0.00017929,2]
[406723637,1772121051766,-150.0,0.00017929,2]
[406723638,1772121051775,-339.21457322,0.00017929,2]
[406723639,1772121051785,-150.0,0.0001793,2]
[406723640,1772121051795,-150.0,0.0001793,2]
[406723641,1772121051804,-187.29970089,0.00017931,2]
[406723642,1772121051813,-156.66979557,0.00017931,2]
[406723643,1772121051822,-339.21457322,0.00017931,2]
[406723645,1772121051831,-150.0,0.00017932,2]
[406723647,1772121051840,-150.0,0.00017932,2]
[406723649,1772121051850,-150.0,0.00017932,2]
[406723651,1772121051860,-150.0,0.00017932,2]
[406723653,1772121051869,-150.0,0.00017932,2]
[406723655,1772121051881,-150.0,0.00017932,2]
[406723657,1772121051891,-187.29970089,0.00017932,2]
[406723659,1772121051901,-156.66979557,0.00017932,2]
[406723661,1772121051910,-339.21457322,0.00017932,2]
[406723663,1772121051920,-150.0,0.00017933,2]
[406723665,1772121051929,-150.0,0.00017933,2]
[406723667,1772121051938,-187.29970089,0.00017934,2]
[406723669,1772121051950,-156.66979557,0.00017934,2]
[406723671,1772121051959,-150.0,0.00017934,2]
[406723673,1772121051968,-339.21457322,0.00017934,2]
[406723675,1772121051978,-150.0,0.00017934,2]
[406723677,1772121051987,-150.0,0.00017934,2]
[406723679,1772121051996,-150.0,0.00017934,2]
[406723681,1772121052005,-150.0,0.00017935,2]
[406723684,1772121052016,-150.0,0.00017935,2]
[406723686,1772121052025,-150.0,0.00017935,2]
[406723688,1772121052034,-187.29970089,0.00017935,2]
[406723690,1772121052045,-156.66979557,0.00017935,2]
[406723692,1772121052054,-339.21457322,0.00017935,2]
[406723694,1772121052063,-527.0,0.00017935,2]
[406723696,1772121052074,-150.0,0.00017936,2]
[406723698,1772121052083,-150.0,0.00017936,2]
[406723700,1772121052095,-150.0,0.00017936,2]
[406723701,1772121052105,-187.29970089,0.00017936,2]
[406723704,1772121052114,-156.66979557,0.00017936,2]
[406723706,1772121052124,-339.21457322,0.00017936,2]
[406723707,1772121052133,-150.0,0.00017937,2]
[406723709,1772121052142,-187.29970089,0.00017938,2]
[406723712,1772121052152,-156.66979557,0.00017938,2]
[406723714,1772121052161,-150.0,0.00017938,2]
[406723716,1772121052171,-339.21457322,0.00017938,2]
[406723718,1772121052180,-150.0,0.00017938,2]
[406723720,1772121052190,-150.0,0.00017938,2]
[406723722,1772121052199,-150.0,0.00017939,2]
[406723724,1772121052209,-150.0,0.00017939,2]
[406723726,1772121052218,-187.29970089,0.00017939,2]
[406723728,1772121052234,-156.66979557,0.00017939,2]
[406723729,1772121052244,-339.21457322,0.00017939,2]
[406723731,1772121052254,-150.0,0.00017939,2]
[406723734,1772121052264,-150.0,0.0001794,2]
[406723736,1772121052274,-150.0,0.0001794,2]
[406723738,1772121052283,-150.0,0.0001794,2]
[406723739,1772121052294,-150.0,0.0001794,2]
[406723742,1772121052303,-187.29970089,0.00017941,2]
[406723744,1772121052313,-156.66979557,0.00017941,2]
[406723746,1772121052322,-339.21457322,0.00017941,2]
[406723748,1772121052332,-150.0,0.00017941,2]
[406723750,1772121052342,-150.0,0.00017941,2]
[406723752,1772121052351,-150.0,0.00017941,2]
[406723754,1772121052360,-150.0,0.00017941,2]
[406723756,1772121052369,-150.0,0.00017942,2]
[406723758,1772121052379,-187.29970089,0.00017942,2]
[406723760,1772121052388,-156.66979557,0.00017942,2]
[406723762,1772121052398,-150.0,0.00017942,2]
[406723764,1772121052408,-339.21457322,0.00017942,2]
[406723766,1772121052417,-150.0,0.00017943,2]
[406723768,1772121052426,-150.0,0.00017943,2]
[406723770,1772121052436,-187.29970089,0.00017943,2]
[406723772,1772121052446,-156.66979557,0.00017943,2]
[406723774,1772121052455,-339.21457322,0.00017943,2]
[406723776,1772121052464,-150.0,0.00017943,2]
[406723778,1772121052473,-150.0,0.00017944,2]
[406723780,1772121052483,-150.0,0.00017944,2]
[406723782,1772121052492,-150.0,0.00017944,2]
[406723784,1772121052502,-187.29970089,0.00017945,2]
[406723786,1772121052512,-156.66979557,0.00017945,2]
[406723788,1772121052521,-339.21457322,0.00017945,2]
[406723790,1772121052530,-150.0,0.00017945,2]
[406723792,1772121052540,-150.0,0.00017945,2]
[406723794,1772121052549,-150.0,0.00017945,2]
[406723796,1772121052559,-150.0,0.00017946,2]
[406723798,1772121052568,-1000.0,0.00017946,2]
[406723800,1772121052578,-187.29970089,0.00017946,2]
[406723802,1772121052587,-156.66979557,0.00017946,2]
[406723804,1772121052596,-150.0,0.00017946,2]
[406723806,1772121052605,-339.21457322,0.00017946,2]
[406723808,1772121052615,-150.0,0.00017946,2]
[406723810,1772121052624,-150.0,0.00017946,2]
[406723812,1772121052633,-150.0,0.00017947,2]
[406723814,1772121052643,-187.29970089,0.00017947,2]
[406723816,1772121052652,-156.66979557,0.00017947,2]
[406723818,1772121052662,-339.21457322,0.00017947,2]
[406723820,1772121052672,-150.0,0.00017947,2]
[406723822,1772121052681,-150.0,0.00017948,2]
[406723824,1772121052690,-150.0,0.00017948,2]
[406723826,1772121052699,-150.0,0.00017948,2]
[406723828,1772121052709,-150.0,0.00017949,2]
[406723830,1772121052719,-187.29970089,0.00017949,2]
[406723832,1772121052728,-156.66979557,0.00017949,2]
[406723834,1772121052738,-339.21457322,0.00017949,2]
[406723836,1772121052747,-150.0,0.00017949,2]
[406723838,1772121052756,-150.0,0.00017949,2]
[406723841,1772121052766,-187.29970089,0.0001795,2]
[406723843,1772121052775,-156.66979557,0.0001795,2]
[406723844,1772121052784,-150.0,0.0001795,2]
[406723846,1772121052794,-339.21457322,0.0001795,2]
[406723848,1772121052803,-150.0,0.00017951,2]
[406723850,1772121052812,-150.0,0.00017951,2]
[406723861,1772121052822,-187.29970089,0.00017952,2]
[406723863,1772121052916,-156.66979557,0.00017952,2]
[406723865,1772121052926,-339.21457322,0.00017952,2]
[406723867,1772121052935,-150.0,0.00017952,2]
[406723869,1772121052947,-150.0,0.00017952,2]
[406723871,1772121052956,-150.0,0.00017952,2]
[406723873,1772121052965,-150.0,0.00017952,2]
[406723875,1772121052975,-150.0,0.00017952,2]
[406723877,1772121052984,-150.0,0.00017952,2]
[406723880,1772121052994,-150.0,0.00017953,2]
[406723882,1772121053003,-187.29970089,0.00017953,2]
[406723884,1772121053012,-156.66979557,0.00017953,2]
[406723885,1772121053022,-339.21457322,0.00017953,2]
[406723887,1772121053032,-150.0,0.00017953,2]
[406723889,1772121053041,-150.0,0.00017954,2]
[406723891,1772121053051,-187.29970089,0.00017954,2]
[406723893,1772121053060,-150.0,0.00017954,2]
[406723895,1772121053069,-156.66979557,0.00017954,2]
[406723897,1772121053078,-150.0,0.00017954,2]
[406723899,1772121053088,-339.21457322,0.00017954,2]
[406723902,1772121053099,-150.0,0.00017955,2]
[406723904,1772121053108,-150.0,0.00017955,2]
[406723906,1772121053117,-150.0,0.00017955,2]
[406723908,1772121053127,-150.0,0.00017956,2]
[406723910,1772121053137,-187.29970089,0.00017956,2]
[406723912,1772121053146,-156.66979557,0.00017956,2]
[406723914,1772121053155,-339.21457322,0.00017956,2]
[406723916,1772121053164,-150.0,0.00017956,2]
[406723918,1772121053174,-150.0,0.00017957,2]
[406723920,1772121053183,-150.0,0.00017957,2]
[406723922,1772121053193,-187.29970089,0.00017957,2]
[406723924,1772121053202,-156.66979557,0.00017957,2]
[406723926,1772121053212,-339.21457322,0.00017957,2]
[406723928,1772121053222,-150.0,0.00017957,2]
[406723930,1772121053231,-150.0,0.00017958,2]
[406723932,1772121053240,-150.0,0.00017958,2]
[406723934,1772121053249,-187.29970089,0.00017958,2]
[406723936,1772121053259,-156.66979557,0.00017958,2]
[406723938,1772121053268,-150.0,0.00017958,2]
[406723940,1772121053277,-339.21457322,0.00017958,2]
[406723942,1772121053288,-150.0,0.00017959,2]
[406723944,1772121053297,-150.0,0.00017959,2]
[406723946,1772121053307,-150.0,0.00017959,2]
[406723948,1772121053316,-150.0,0.00017959,2]
[406723949,1772121053327,-150.0,0.0001796,2]
[406723951,1772121053336,-187.29970089,0.0001796,2]
[406723953,1772121053346,-156.66979557,0.0001796,2]
[406723955,1772121053356,-339.21457322,0.0001796,2]
[406723957,1772121053365,-150.0,0.0001796,2]
[406723959,1772121053374,-150.0,0.00017961,2]
[406723961,1772121053384,-150.0,0.00017961,2]
[406723962,1772121053393,-150.0,0.00017961,2]
[406723964,1772121053402,-150.0,0.00017961,2]
[406723966,1772121053411,-187.29970089,0.00017961,2]
[406723968,1772121053420,-156.66979557,0.00017961,2]
[406723970,1772121053429,-339.21457322,0.00017961,2]
[406723972,1772121053439,-150.0,0.00017962,2]
[406723974,1772121053448,-150.0,0.00017962,2]
[406723976,1772121053458,-150.0,0.00017962,2]
[406723978,1772121053467,-187.29970089,0.00017963,2]
[406723980,1772121053476,-156.66979557,0.00017963,2]
[406723982,1772121053485,-150.0,0.00017963,2]
[406723984,1772121053495,-339.21457322,0.00017963,2]
[406723986,1772121053505,-150.0,0.00017963,2]
[406723988,1772121053514,-150.0,0.00017963,2]
[406723990,1772121053523,-150.0,0.00017964,2]
[406723993,1772121053543,-187.29970089,0.00017964,2]
[406723996,1772121053560,-156.66979557,0.00017964,2]
[406723998,1772121053578,-339.21457322,0.00017964,2]
[406724001,1772121053597,-150.0,0.00017964,2]
[406724004,1772121053611,-150.0,0.00017964,2]
[406724007,1772121053631,-150.0,0.00017965,2]
[406724009,1772121053650,-150.0,0.00017965,2]
[406724012,1772121053667,-5800.0,0.00017965,2]
[406724015,1772121053687,-150.0,0.00017965,2]
[406724018,1772121053703,-187.29970089,0.00017965,2]
[406724021,1772121053722,-156.66979557,0.00017965,2]
[406724024,1772121053741,-339.21457322,0.00017965,2]
[406724026,1772121053753,-150.0,0.00017966,2]
[406724029,1772121053771,-150.0,0.00017967,2]
[406724031,1772121053784,-187.29970089,0.00017967,2]
[406724034,1772121053804,-156.66979557,0.00017967,2]
[406724036,1772121053816,-150.0,0.00017967,2]
[406724039,1772121053831,-339.21457322,0.00017967,2]
[406724041,1772121053845,-150.0,0.00017967,2]
[406724043,1772121053861,-150.0,0.00017967,2]
[406724045,1772121053875,-150.0,0.00017968,2]
[406724048,1772121053889,-150.0,0.00017968,2]
[406724050,1772121053904,-187.29970089,0.00017968,2]
[406724053,1772121053918,-156.66979557,0.00017968,2]
[406724055,1772121053932,-339.21457322,0.00017968,2]
[406724057,1772121053947,-150.0,0.00017969,2]
[406724060,1772121053961,-150.0,0.00017969,2]
[406724062,1772121053974,-150.0,0.00017969,2]
[406724064,1772121053988,-187.29970089,0.0001797,2]
[406724067,1772121054003,-156.66979557,0.0001797,2]
[406724070,1772121054017,-339.21457322,0.0001797,2]
[406724072,1772121054034,-150.0,0.0001797,2]
[406724074,1772121054050,-400.0,0.0001797,2]
[406724077,1772121054064,-300.0,0.0001797,2]
[406724079,1772121054077,-400.0,0.0001797,2]
[406724082,1772121054092,-300.0,0.0001797,2]
[406724084,1772121054108,-400.0,0.0001797,2]
[406724087,1772121054123,-400.0,0.0001797,2]
[406724089,1772121054138,-400.0,0.0001797,2]
[406724092,1772121054154,-400.0,0.0001797,2]
[406724094,1772121054169,-150.0,0.0001797,2]
[406724097,1772121054184,-150.0,0.0001797,2]
[406724099,1772121054199,-187.29970089,0.00017971,2]
[406724102,1772121054213,-156.66979557,0.00017971,2]
[406724104,1772121054228,-150.0,0.00017971,2]
[406724107,1772121054242,-339.21457322,0.00017971,2]
[406724109,1772121054257,-150.0,0.00017971,2]
[406724111,1772121054271,-150.0,0.00017971,2]
[406724114,1772121054286,-150.0,0.00017972,2]
[406724116,1772121054300,-150.0,0.00017972,2]
[406724119,1772121054315,-187.29970089,0.00017972,2]
[406724121,1772121054329,-156.66979557,0.00017972,2]
[406724124,1772121054343,-339.21457322,0.00017972,2]
[406724126,1772121054357,-500.0,0.00017972,2]
[406724128,1772121054371,-150.0,0.00017973,2]
[406724131,1772121054386,-150.0,0.00017973,2]
[406724133,1772121054400,-174.26065421,0.00017973,2]
[406724136,1772121054415,-500.0,0.00017973,2]
[406724138,1772121054428,-500.0,0.00017973,2]
[406724141,1772121054442,-150.0,0.00017973,2]
[406724143,1772121054457,-150.0,0.00017973,2]
[406724146,1772121054471,-150.0,0.00017973,2]
[406724148,1772121054485,-5800.0,0.00017973,2]
[406724149,1772121054624,-187.29970089,0.00017974,2]
[406724150,1772121054642,-156.66979557,0.00017974,2]
[406724151,1772121054652,-339.21457322,0.00017974,2]
[406724152,1772121054661,-150.0,0.00017975,2]
[406724153,1772121054670,-187.29970089,0.00017975,2]
[406724154,1772121054679,-156.66979557,0.00017975,2]
[406724155,1772121054688,-150.0,0.00017975,2]
[406724156,1772121054697,-339.21457322,0.00017975,2]
[406724157,1772121054705,-150.0,0.00017975,2]
[406724158,1772121054715,-150.0,0.00017976,2]
[406724160,1772121054724,-150.0,0.00017976,2]
[406724162,1772121054733,-150.0,0.00017976,2]
[406724164,1772121054743,-150.0,0.00017976,2]
[406724166,1772121054752,-150.0,0.00017976,2]
[406724168,1772121054762,-150.0,0.00017976,2]
[406724170,1772121054771,-187.29970089,0.00017976,2]
[406724172,1772121054780,-156.66979557,0.00017976,2]
[406724174,1772121054790,-339.21457322,0.00017976,2]
[406724176,1772121054800,-150.0,0.00017977,2]
[406724178,1772121054809,-150.0,0.00017978,2]
[406724180,1772121054818,-150.0,0.00017978,2]
[406724182,1772121054827,-187.29970089,0.00017978,2]
[406724184,1772121054836,-156.66979557,0.00017978,2]
[406724186,1772121054845,-339.21457322,0.00017978,2]
[406724188,1772121054854,-1034.1174351,0.00017979,2]
[406724190,1772121054867,-187.29970089,0.00017979,2]
[406724192,1772121054877,-156.66979557,0.00017979,2]
[406724194,1772121054887,-150.0,0.00017979,2]
[406724196,1772121054896,-339.21457322,0.00017979,2]
[406724198,1772121054906,-150.0,0.00017979,2]
[406724200,1772121054915,-150.0,0.00017979,2]
[406724202,1772121054925,-150.0,0.0001798,2]
[406724204,1772121054933,-150.0,0.0001798,2]
[406724206,1772121054942,-150.0,0.0001798,2]
[406724207,1772121054953,-150.0,0.0001798,2]
[406724208,1772121054962,-187.29970089,0.00017981,2]
[406724209,1772121054971,-156.66979557,0.00017981,2]
[406724210,1772121054979,-339.21457322,0.00017981,2]
[406724211,1772121054989,-150.0,0.00017981,2]
[406724212,1772121054999,-150.0,0.00017981,2]
[406724213,1772121055009,-150.0,0.00017981,2]
[406724214,1772121055019,-150.0,0.00017982,2]
[406724215,1772121055028,-5800.0,0.00017982,2]
[406724216,1772121055038,-500.0,0.00017982,2]
[406724217,1772121055048,-187.29970089,0.00017982,2]
[406724218,1772121055057,-156.66979557,0.00017982,2]
[406724219,1772121055067,-339.21457322,0.00017982,2]
[406724220,1772121055076,-150.0,0.00017982,2]
[406724221,1772121055085,-150.0,0.00017982,2]
[406724222,1772121055094,-150.0,0.00017982,2]
[406724223,1772121055104,-150.0,0.00017983,2]
[406724224,1772121055113,-500.0,0.00017983,2]
[406724225,1772121055122,-500.0,0.00017983,2]
[406724226,1772121055131,-500.0,0.00017983,12]
[406724227,1772121055140,-500.0,0.00017983,2]
[406724228,1772121055149,-500.0,0.00017983,2]
[406724229,1772121055159,-187.29970089,0.00017983,2]
[406724230,1772121055168,-156.66979557,0.00017983,2]
[406724231,1772121055178,-150.0,0.00017983,2]
[406724232,1772121055187,-339.21457322,0.00017983,2]
[406724233,1772121055196,-150.0,0.00017984,2]
[406724234,1772121055206,-150.0,0.00017984,2]
[406724235,1772121055215,-150.0,0.00017984,2]
[406724236,1772121055226,-350.0,0.00017984,5]
[406724237,1772121055235,-187.29970089,0.00017985,2]
[406724238,1772121055243,-156.66979557,0.00017985,2]
[406724239,1772121055253,-339.21457322,0.00017985,2]
[406724240,1772121055262,-150.0,0.00017985,2]
[406724241,1772121055271,-150.0,0.00017986,2]
[406724242,1772121055280,-150.0,0.00017986,2]
[406724243,1772121055289,-150.0,0.00017986,2]
[406724244,1772121055299,-187.29970089,0.00017986,2]
[406724245,1772121055308,-156.66979557,0.00017986,2]
[406724246,1772121055317,-339.21457322,0.00017986,2]
[406724247,1772121055326,-150.0,0.00017986,2]
[406724248,1772121055335,-150.0,0.00017986,2]
[406724249,1772121055344,-150.0,0.00017987,2]
[406724250,1772121055355,-187.29970089,0.00017988,2]
[406724251,1772121055364,-156.66979557,0.00017988,2]
[406724252,1772121055373,-150.0,0.00017988,2]
[406724253,1772121055382,-339.21457322,0.00017988,2]
[406724254,1772121055393,-150.0,0.00017988,2]
[406724255,1772121055402,-150.0,0.00017988,2]
[406724256,1772121055411,-150.0,0.00017988,2]
[406724257,1772121055421,-150.0,0.00017988,2]
[406724258,1772121055430,-150.0,0.00017989,2]
[406724259,1772121055439,-187.29970089,0.00017989,2]
[406724260,1772121055448,-156.66979557,0.00017989,2]
[406724261,1772121055458,-339.21457322,0.00017989,2]
[406724262,1772121055467,-150.0,0.0001799,2]
[406724263,1772121055476,-150.0,0.0001799,2]
[406724264,1772121055485,-150.0,0.0001799,2]
[406724265,1772121055494,-200.0,0.0001799,2]